[Event "British Rapidplay Championship 2023"]
[Site "Mercure Bradford, Bankfield Hotel"]
[Date "2023.04.16"]
[Round "11.5"]
[White "Clark, Robert G"]
[Black "Arkell, Keith C"]
[Result "0-1"]
[TimeControl "15 minutes plus 10 seconds per move"]
[WhiteElo "2008"]
[BlackElo "2447"]

1. e4 {[%clk 00:15:16]} {[%emt 00:00:03]} c6 {[%clk 00:15:14]} {[%emt
00:00:08]} 2. d4 {[%clk 00:15:24]} {[%emt 00:00:02]} d5 {[%clk 00:15:23]} 3.
Nd2 {[%clk 00:15:32]} {[%emt 00:00:01]} dxe4 {[%clk 00:15:32]} {[%emt
00:00:02]} 4. Nxe4 {[%clk 00:15:41]} Nd7 {[%clk 00:15:40]} {[%emt 00:00:02]} 5.
Nf3 {[%clk 00:15:14]} {[%emt 00:00:37]} Ngf6 {[%clk 00:15:48]} {[%emt
00:00:02]} 6. Nxf6+ {[%clk 00:14:50]} {[%emt 00:00:34]} Nxf6 {[%clk 00:15:55]}
{[%emt 00:00:03]} 7. c3 {[%clk 00:14:34]} {[%emt 00:00:26]} Bg4 {[%clk
00:15:57]} {[%emt 00:00:08]} 8. Be2 {[%clk 00:14:35]} {[%emt 00:00:08]} e6
{[%clk 00:16:05]} {[%emt 00:00:03]} 9. Ne5 {[%clk 00:13:58]} {[%emt 00:00:46]}
Bxe2 {[%clk 00:16:12]} {[%emt 00:00:04]} 10. Qxe2 {[%clk 00:14:05]} {[%emt
00:00:03]} Be7 {[%clk 00:16:19]} {[%emt 00:00:02]} 11. O-O {[%clk 00:13:53]}
{[%emt 00:00:22]} O-O {[%clk 00:16:26]} {[%emt 00:00:03]} 12. Bg5 {[%clk
00:13:10]} {[%emt 00:00:52]} h6 {[%clk 00:16:15]} {[%emt 00:00:22]} 13. Bh4
{[%clk 00:12:40]} {[%emt 00:00:40]} Nd5 {[%clk 00:16:05]} {[%emt 00:00:20]} 14.
Bxe7 {[%clk 00:12:38]} {[%emt 00:00:12]} Qxe7 {[%clk 00:16:13]} {[%emt
00:00:02]} 15. Rfd1 {[%clk 00:12:11]} {[%emt 00:00:37]} Rfd8 {[%clk 00:16:21]}
{[%emt 00:00:03]} 16. g3 {[%clk 00:11:08]} {[%emt 00:01:12]} Qc7 {[%clk
00:16:21]} {[%emt 00:00:11]} 17. Qf3 {[%clk 00:10:23]} {[%emt 00:00:54]} c5
{[%clk 00:16:07]} {[%emt 00:00:24]} 18. Qe2 {[%clk 00:08:54]} {[%emt 00:01:40]}
Nf6 {[%clk 00:16:03]} {[%emt 00:00:14]} 19. Nf3 {[%clk 00:08:11]} {[%emt
00:00:52]} cxd4 {[%clk 00:16:03]} {[%emt 00:00:11]} 20. Rxd4 {[%clk 00:07:44]}
{[%emt 00:00:37]} Rxd4 {[%clk 00:16:10]} {[%emt 00:00:03]} 21. Nxd4 {[%clk
00:07:52]} {[%emt 00:00:01]} a6 {[%clk 00:16:15]} {[%emt 00:00:05]} 22. Nb3
{[%clk 00:07:15]} {[%emt 00:00:47]} b5 {[%clk 00:16:15]} {[%emt 00:00:10]} 23.
Rd1 {[%clk 00:07:16]} {[%emt 00:00:08]} Rc8 {[%clk 00:16:12]} {[%emt 00:00:15]}
24. Rd4 {[%clk 00:05:47]} {[%emt 00:01:38]} Nd5 {[%clk 00:16:15]} {[%emt
00:00:07]} 25. Nd2 {[%clk 00:05:08]} {[%emt 00:00:49]} Nb6 {[%clk 00:16:12]}
{[%emt 00:00:14]} 26. Nf1 {[%clk 00:04:55]} {[%emt 00:00:22]} Nc4 {[%clk
00:15:47]} {[%emt 00:00:35]} 27. Ne3 {[%clk 00:04:44]} {[%emt 00:00:22]} Qe5
{[%clk 00:15:20]} {[%emt 00:00:37]} 28. Kf1 {[%clk 00:03:45]} {[%emt 00:01:08]}
Nb6 {[%clk 00:13:26]} {[%emt 00:02:05]} 29. Qd3 {[%clk 00:03:25]} {[%emt
00:00:29]} Na4 {[%clk 00:13:06]} {[%emt 00:00:31]} 30. Qd2 {[%clk 00:02:36]}
{[%emt 00:00:58]} h5 {[%clk 00:13:00]} {[%emt 00:00:17]} 31. Kg1 {[%clk
00:02:08]} {[%emt 00:00:38]} g6 {[%clk 00:12:19]} {[%emt 00:00:51]} 32. Rd6
{[%clk 00:01:17]} {[%emt 00:01:00]} Nxb2 {[%clk 00:11:47]} {[%emt 00:00:42]} 33.
Rxa6 {[%clk 00:01:11]} {[%emt 00:00:17]} Na4 {[%clk 00:11:54]} {[%emt
00:00:03]} 34. c4 {[%clk 00:00:45]} {[%emt 00:00:36]} Nc5 {[%clk 00:11:24]}
{[%emt 00:00:40]} 35. Rd6 {[%clk 00:00:35]} {[%emt 00:00:20]} Ne4 {[%clk
00:09:02]} {[%emt 00:02:31]} 36. Qd4 {[%clk 00:00:24]} {[%emt 00:00:21]} Qxd6
{[%clk 00:09:00]} {[%emt 00:00:13]} 37. Qxe4 {[%clk 00:00:32]} {[%emt
00:00:02]} bxc4 {[%clk 00:09:00]} {[%emt 00:00:11]} 38. Nxc4 {[%clk 00:00:26]}
{[%emt 00:00:15]} Qb4 {[%clk 00:09:01]} {[%emt 00:00:09]} 0-1

[Event "British Rapidplay Championship 2023"]
[Site "Mercure Bradford, Bankfield Hotel"]
[Date "2023.04.16"]
[Round "11.6"]
[White "Pitcher, John"]
[Black "Lau, Luke"]
[Result "1-0"]
[TimeControl "15 minutes plus 10 seconds per move"]
[WhiteElo "2358"]
[BlackElo "1917"]

1. e4 {[%clk 00:15:18]} e5 {[%clk 00:15:19]} {[%emt 00:00:02]} 2. Bc4 {[%clk
00:15:23]} {[%emt 00:00:04]} Nf6 {[%clk 00:15:18]} {[%emt 00:00:12]} 3. d3
{[%clk 00:15:31]} {[%emt 00:00:01]} c6 {[%clk 00:15:22]} {[%emt 00:00:07]} 4.
Nf3 {[%clk 00:15:39]} {[%emt 00:00:02]} d5 {[%clk 00:15:29]} {[%emt 00:00:03]}
5. Bb3 {[%clk 00:15:46]} {[%emt 00:00:02]} Bd6 {[%clk 00:15:36]} {[%emt
00:00:04]} 6. exd5 {[%clk 00:15:51]} {[%emt 00:00:05]} cxd5 {[%clk 00:15:40]}
{[%emt 00:00:06]} 7. O-O {[%clk 00:15:44]} {[%emt 00:00:16]} O-O {[%clk
00:15:35]} {[%emt 00:00:16]} 8. Bg5 {[%clk 00:15:42]} {[%emt 00:00:11]} Be6
{[%clk 00:12:23]} {[%emt 00:03:23]} 9. Nc3 {[%clk 00:15:17]} {[%emt 00:00:35]}
d4 {[%clk 00:10:09]} {[%emt 00:02:24]} 10. Ne4 {[%clk 00:14:06]} {[%emt
00:01:20]} Be7 {[%clk 00:09:48]} {[%emt 00:00:32]} 11. Bxe6 {[%clk 00:12:10]}
{[%emt 00:02:06]} fxe6 {[%clk 00:09:22]} {[%emt 00:00:36]} 12. Nxe5 {[%clk
00:11:47]} {[%emt 00:00:33]} Qd5 {[%clk 00:08:28]} {[%emt 00:01:04]} 13. Nf3
{[%clk 00:11:07]} {[%emt 00:00:49]} Nc6 {[%clk 00:08:27]} {[%emt 00:00:13]} 14.
Qe2 {[%clk 00:09:53]} {[%emt 00:01:22]} Rae8 {[%clk 00:08:23]} {[%emt
00:00:14]} 15. a3 {[%clk 00:09:36]} {[%emt 00:00:28]} e5 {[%clk 00:07:52]}
{[%emt 00:00:41]} 16. Rfe1 {[%clk 00:08:45]} {[%emt 00:01:00]} Nh5 {[%clk
00:07:40]} {[%emt 00:00:23]} 17. Bd2 {[%clk 00:07:37]} {[%emt 00:01:18]} Bd8
{[%clk 00:05:14]} {[%emt 00:02:36]} 18. Neg5 {[%clk 00:07:11]} {[%emt
00:00:34]} g6 {[%clk 00:03:55]} {[%emt 00:01:30]} 19. b4 {[%clk 00:06:49]}
{[%emt 00:00:33]} Bc7 {[%clk 00:03:05]} {[%emt 00:00:59]} 20. a4 {[%clk
00:05:39]} {[%emt 00:01:21]} Nd8 {[%clk 00:02:45]} {[%emt 00:00:30]} 21. b5
{[%clk 00:05:23]} {[%emt 00:00:25]} Ne6 {[%clk 00:02:29]} {[%emt 00:00:26]} 22.
Nxe6 {[%clk 00:05:23]} {[%emt 00:00:10]} Rxe6 {[%clk 00:02:36]} {[%emt
00:00:04]} 23. Qe4 {[%clk 00:05:25]} {[%emt 00:00:07]} Qxe4 {[%clk 00:02:11]}
{[%emt 00:00:36]} 24. Rxe4 {[%clk 00:05:31]} {[%emt 00:00:03]} Nf6 {[%clk
00:02:09]} {[%emt 00:00:13]} 25. Re2 {[%clk 00:05:32]} {[%emt 00:00:08]} e4
{[%clk 00:00:49]} {[%emt 00:01:31]} 26. Rae1 {[%clk 00:04:12]} {[%emt
00:01:30]} Rfe8 {[%clk 00:00:19]} {[%emt 00:00:41]} 27. Nxd4 {[%clk 00:03:36]}
{[%emt 00:00:44]} Rd6 {[%clk 00:00:26]} {[%emt 00:00:03]} 28. Nb3 {[%clk
00:02:27]} {[%emt 00:01:19]} Rd5 {[%clk 00:00:14]} {[%emt 00:00:24]} 29. dxe4
{[%clk 00:02:24]} {[%emt 00:00:12]} Rh5 {[%clk 00:00:19]} {[%emt 00:00:06]} 30.
h3 {[%clk 00:02:30]} {[%emt 00:00:03]} Nd7 {[%clk 00:00:20]} {[%emt 00:00:09]}
31. f4 {[%clk 00:02:16]} {[%emt 00:00:24]} Nc5 {[%clk 00:00:18]} {[%emt
00:00:12]} 32. g4 {[%clk 00:01:44]} {[%emt 00:00:41]} 1-0

[Event "British Rapidplay Championship 2023"]
[Site "Mercure Bradford, Bankfield Hotel"]
[Date "2023.04.16"]
[Round "11.7"]
[White "Eckersley-Waites, Tom"]
[Black "Cook, Phil"]
[Result "1/2-1/2"]
[TimeControl "15 minutes plus 10 seconds per move"]
[WhiteElo "2304"]
[BlackElo "2126"]

1. d4 {[%clk 00:15:13]} {[%emt 00:00:07]} Nf6 {[%clk 00:15:17]} {[%emt
00:00:03]} 2. c4 {[%clk 00:15:18]} {[%emt 00:00:05]} g6 {[%clk 00:15:24]}
{[%emt 00:00:02]} 3. Nc3 {[%clk 00:15:27]} {[%emt 00:00:01]} Bg7 {[%clk
00:15:33]} {[%emt 00:00:02]} 4. e4 {[%clk 00:15:35]} {[%emt 00:00:01]} d6
{[%clk 00:15:41]} {[%emt 00:00:02]} 5. Nf3 {[%clk 00:15:44]} {[%emt 00:00:01]}
O-O {[%clk 00:15:48]} {[%emt 00:00:03]} 6. Be2 {[%clk 00:15:53]} {[%emt
00:00:01]} e5 {[%clk 00:15:51]} {[%emt 00:00:07]} 7. O-O {[%clk 00:16:01]}
{[%emt 00:00:03]} Bg4 {[%clk 00:15:55]} {[%emt 00:00:06]} 8. Be3 {[%clk
00:15:40]} {[%emt 00:00:31]} Bxf3 {[%clk 00:15:46]} {[%emt 00:00:19]} 9. Bxf3
{[%clk 00:15:48]} {[%emt 00:00:02]} exd4 {[%clk 00:15:52]} {[%emt 00:00:04]} 10.
Bxd4 {[%clk 00:15:54]} {[%emt 00:00:03]} Nc6 {[%clk 00:15:57]} {[%emt
00:00:05]} 11. Be3 {[%clk 00:15:59]} {[%emt 00:00:06]} Nd7 {[%clk 00:15:27]}
{[%emt 00:00:40]} 12. Qd2 {[%clk 00:15:31]} {[%emt 00:00:38]} Nc5 {[%clk
00:14:34]} {[%emt 00:01:04]} 13. Rad1 {[%clk 00:13:25]} {[%emt 00:02:15]} Re8
{[%clk 00:13:53]} {[%emt 00:00:51]} 14. Qc1 {[%clk 00:10:32]} {[%emt 00:03:04]}
Qc8 {[%clk 00:12:00]} {[%emt 00:02:03]} 15. Rfe1 {[%clk 00:07:51]} {[%emt
00:02:50]} Ne5 {[%clk 00:09:36]} {[%emt 00:02:34]} 16. Be2 {[%clk 00:07:53]}
{[%emt 00:00:08]} Ng4 {[%clk 00:09:29]} {[%emt 00:00:16]} 17. Bxg4 {[%clk
00:06:59]} {[%emt 00:01:04]} Qxg4 {[%clk 00:09:37]} {[%emt 00:00:02]} 18. f3
{[%clk 00:07:07]} Qe6 {[%clk 00:09:06]} {[%emt 00:00:42]} 19. Nb5 {[%clk
00:06:37]} {[%emt 00:00:41]} Qc8 {[%clk 00:07:56]} {[%emt 00:01:19]} 20. b4
{[%clk 00:06:15]} {[%emt 00:00:31]} Ne6 {[%clk 00:06:45]} {[%emt 00:01:21]} 21.
c5 {[%clk 00:06:19]} {[%emt 00:00:06]} a6 {[%clk 00:06:03]} {[%emt 00:00:52]}
22. Nc3 {[%clk 00:06:11]} {[%emt 00:00:18]} a5 {[%clk 00:05:12]} {[%emt
00:01:01]} 23. cxd6 {[%clk 00:06:05]} {[%emt 00:00:16]} cxd6 {[%clk 00:05:21]}
{[%emt 00:00:01]} 24. Nd5 {[%clk 00:04:48]} {[%emt 00:01:28]} Qxc1 {[%clk
00:05:07]} {[%emt 00:00:23]} 25. Rxc1 {[%clk 00:04:52]} {[%emt 00:00:06]} axb4
{[%clk 00:05:12]} {[%emt 00:00:05]} 26. Nxb4 {[%clk 00:04:56]} {[%emt
00:00:06]} Ra4 {[%clk 00:04:34]} {[%emt 00:00:49]} 27. Rb1 {[%clk 00:04:46]}
{[%emt 00:00:20]} Bc3 {[%clk 00:04:33]} {[%emt 00:00:10]} 28. Nd5 {[%clk
00:04:39]} {[%emt 00:00:17]} Bxe1 {[%clk 00:03:41]} {[%emt 00:01:02]} 29. Nf6+
{[%clk 00:04:38]} {[%emt 00:00:11]} Kf8 {[%clk 00:03:45]} {[%emt 00:00:06]} 30.
Nxe8 {[%clk 00:03:32]} {[%emt 00:01:17]} Kxe8 {[%clk 00:02:43]} {[%emt
00:01:13]} 31. Rxe1 {[%clk 00:03:39]} {[%emt 00:00:03]} Rxa2 {[%clk 00:02:50]}
{[%emt 00:00:02]} 32. Rb1 {[%clk 00:03:46]} {[%emt 00:00:02]} Re2 {[%clk
00:02:25]} {[%emt 00:00:35]} 33. Bf2 {[%clk 00:02:00]} {[%emt 00:01:57]} Nc5
{[%clk 00:01:34]} {[%emt 00:01:01]} 34. Bxc5 {[%clk 00:01:38]} {[%emt
00:00:32]} dxc5 {[%clk 00:01:41]} {[%emt 00:00:02]} 35. Rxb7 {[%clk 00:01:47]}
{[%emt 00:00:01]} Rc2 {[%clk 00:01:03]} {[%emt 00:00:47]} 36. h4 {[%clk
00:01:40]} {[%emt 00:00:18]} c4 {[%clk 00:00:46]} {[%emt 00:00:27]} 37. h5
{[%clk 00:01:42]} {[%emt 00:00:08]} gxh5 {[%clk 00:00:32]} {[%emt 00:00:24]} 38.
Kh2 {[%clk 00:01:49]} {[%emt 00:00:04]} Rc1 {[%clk 00:00:39]} {[%emt 00:00:02]}
39. Kg3 {[%clk 00:01:45]} {[%emt 00:00:13]} c3 {[%clk 00:00:47]} {[%emt
00:00:02]} 40. Rc7 {[%clk 00:01:46]} {[%emt 00:00:10]} c2 {[%clk 00:00:55]}
{[%emt 00:00:02]} 41. Kf4 {[%clk 00:01:53]} {[%emt 00:00:03]} Kd8 {[%clk
00:00:47]} {[%emt 00:00:18]} 42. Rc3 {[%clk 00:01:46]} {[%emt 00:00:18]} Ke7
{[%clk 00:00:52]} {[%emt 00:00:06]} 43. Ke5 {[%clk 00:01:05]} {[%emt 00:00:51]}
h4 {[%clk 00:00:28]} {[%emt 00:00:35]} 44. Rc7+ {[%clk 00:00:38]} {[%emt
00:00:35]} 1/2-1/2

[Event "British Rapidplay Championship 2023"]
[Site "Mercure Bradford, Bankfield Hotel"]
[Date "2023.04.16"]
[Round "11.8"]
[White "Surtees, Mike J"]
[Black "Hryshchenko, Kamila"]
[Result "0-1"]
[TimeControl "15 minutes plus 10 seconds per move"]
[WhiteElo "2111"]
[BlackElo "2019"]

1. c3 {[%clk 00:15:18]} {[%emt 00:00:02]} e5 {[%clk 00:15:17]} {[%emt
00:00:04]} 2. d4 {[%clk 00:15:24]} {[%emt 00:00:03]} e4 {[%clk 00:15:21]}
{[%emt 00:00:07]} 3. c4 {[%clk 00:15:06]} {[%emt 00:00:28]} d6 {[%clk
00:15:16]} {[%emt 00:00:15]} 4. Nc3 {[%clk 00:15:12]} {[%emt 00:00:04]} f5
{[%clk 00:15:24]} {[%emt 00:00:02]} 5. h4 {[%clk 00:14:17]} {[%emt 00:01:04]}
Nf6 {[%clk 00:15:30]} {[%emt 00:00:04]} 6. Bg5 {[%clk 00:13:21]} {[%emt
00:01:06]} Be7 {[%clk 00:15:20]} {[%emt 00:00:21]} 7. e3 {[%clk 00:13:23]}
{[%emt 00:00:08]} Be6 {[%clk 00:14:43]} {[%emt 00:00:48]} 8. Nh3 {[%clk
00:13:26]} {[%emt 00:00:05]} c6 {[%clk 00:14:06]} {[%emt 00:00:48]} 9. d5
{[%clk 00:11:13]} {[%emt 00:02:23]} Bf7 {[%clk 00:13:52]} {[%emt 00:00:24]} 10.
f3 {[%clk 00:11:11]} {[%emt 00:00:12]} h6 {[%clk 00:10:54]} {[%emt 00:03:08]}
11. Bxf6 {[%clk 00:10:49]} {[%emt 00:00:32]} Bxf6 {[%clk 00:11:01]} {[%emt
00:00:03]} 12. g3 {[%clk 00:10:47]} {[%emt 00:00:12]} Qb6 {[%clk 00:09:57]}
{[%emt 00:01:15]} 13. Qd2 {[%clk 00:10:07]} {[%emt 00:00:49]} exf3 {[%clk
00:08:48]} {[%emt 00:01:19]} 14. O-O-O {[%clk 00:07:05]} {[%emt 00:03:12]} O-O
{[%clk 00:07:58]} {[%emt 00:01:01]} 15. Nf4 {[%clk 00:06:43]} {[%emt 00:00:32]}
Re8 {[%clk 00:06:11]} {[%emt 00:01:57]} 16. Bh3 {[%clk 00:05:49]} {[%emt
00:01:04]} Nd7 {[%clk 00:04:25]} {[%emt 00:01:57]} 17. Bxf5 {[%clk 00:05:01]}
{[%emt 00:00:58]} Ne5 {[%clk 00:04:24]} {[%emt 00:00:11]} 18. b3 {[%clk
00:04:36]} {[%emt 00:00:35]} g6 {[%clk 00:01:21]} {[%emt 00:03:13]} 19. Be6
{[%clk 00:04:16]} {[%emt 00:00:29]} Bxe6 {[%clk 00:00:55]} {[%emt 00:00:37]} 20.
Ne4 {[%clk 00:03:54]} {[%emt 00:00:31]} Bh8 {[%clk 00:00:47]} {[%emt 00:00:19]}
21. dxe6 {[%clk 00:03:35]} {[%emt 00:00:29]} Rad8 {[%clk 00:00:52]} {[%emt
00:00:05]} 22. Rhf1 {[%clk 00:01:25]} {[%emt 00:02:19]} d5 {[%clk 00:01:01]}
{[%emt 00:00:02]} 23. c5 {[%clk 00:01:23]} {[%emt 00:00:12]} Qb5 {[%clk
00:01:06]} {[%emt 00:00:05]} 24. Nd6 {[%clk 00:01:26]} {[%emt 00:00:07]} Qxc5+
{[%clk 00:01:13]} {[%emt 00:00:04]} 25. Qc2 {[%clk 00:01:28]} {[%emt 00:00:07]}
Qxc2+ {[%clk 00:01:08]} {[%emt 00:00:15]} 26. Kxc2 {[%clk 00:01:37]} Rxd6
{[%clk 00:01:17]} {[%emt 00:00:02]} 27. e4 {[%clk 00:01:39]} {[%emt 00:00:08]}
d4 {[%clk 00:01:22]} {[%emt 00:00:05]} 28. Nd3 {[%clk 00:01:17]} {[%emt
00:00:31]} Rexe6 {[%clk 00:01:29]} {[%emt 00:00:04]} 29. Nxe5 {[%clk 00:00:46]}
{[%emt 00:00:40]} Bxe5 {[%clk 00:01:35]} {[%emt 00:00:04]} 30. Rxf3 {[%clk
00:00:53]} {[%emt 00:00:03]} Rf6 {[%clk 00:01:44]} {[%emt 00:00:01]} 31. Rfd3
{[%clk 00:00:49]} {[%emt 00:00:14]} Rf2+ {[%clk 00:01:51]} {[%emt 00:00:03]} 32.
Kb1 {[%clk 00:00:56]} {[%emt 00:00:02]} Rdf6 {[%clk 00:02:00]} {[%emt
00:00:02]} 0-1

[Event "British Rapidplay Championship 2023"]
[Site "Mercure Bradford, Bankfield Hotel"]
[Date "2023.04.16"]
[Round "11.9"]
[White "Mikalajunas, Kajus"]
[Black "Edwards-Wright, Miles D"]
[Result "1/2-1/2"]
[TimeControl "15 minutes plus 10 seconds per move"]
[WhiteElo "1778"]
[BlackElo "1937"]

1. e4 {[%clk 00:15:18]} {[%emt 00:00:01]} g6 {[%clk 00:15:18]} {[%emt
00:00:02]} 2. Nf3 {[%clk 00:15:23]} {[%emt 00:00:05]} Bg7 {[%clk 00:15:26]}
{[%emt 00:00:02]} 3. Bc4 {[%clk 00:15:31]} {[%emt 00:00:02]} d6 {[%clk
00:15:33]} {[%emt 00:00:04]} 4. O-O {[%clk 00:15:37]} {[%emt 00:00:04]} a6
{[%clk 00:15:33]} {[%emt 00:00:11]} 5. a4 {[%clk 00:15:40]} {[%emt 00:00:06]}
b6 {[%clk 00:15:42]} {[%emt 00:00:01]} 6. d3 {[%clk 00:15:46]} {[%emt
00:00:05]} h6 {[%clk 00:15:42]} {[%emt 00:00:10]} 7. Re1 {[%clk 00:15:50]}
{[%emt 00:00:05]} e6 {[%clk 00:15:49]} {[%emt 00:00:03]} 8. c3 {[%clk
00:15:56]} {[%emt 00:00:04]} Ne7 {[%clk 00:15:55]} {[%emt 00:00:04]} 9. Nbd2
{[%clk 00:15:50]} {[%emt 00:00:15]} Bb7 {[%clk 00:15:55]} {[%emt 00:00:10]} 10.
Nf1 {[%clk 00:15:57]} {[%emt 00:00:03]} O-O {[%clk 00:15:48]} {[%emt 00:00:18]}
11. Ng3 {[%clk 00:15:45]} {[%emt 00:00:21]} Nd7 {[%emt 00:00:17]} 12. d4 {[%clk
00:15:17]} {[%emt 00:00:25]} c5 {[%clk 00:15:17]} {[%emt 00:00:48]} 13. Be3
{[%clk 00:14:48]} {[%emt 00:00:39]} Nf6 {[%clk 00:14:43]} {[%emt 00:00:44]} 14.
Qc2 {[%clk 00:14:11]} {[%emt 00:00:47]} Qc7 {[%clk 00:13:18]} {[%emt 00:01:35]}
15. Bd3 {[%clk 00:13:52]} {[%emt 00:00:28]} c4 {[%clk 00:12:12]} {[%emt
00:01:17]} 16. Bf1 {[%clk 00:13:59]} {[%emt 00:00:03]} Kh7 {[%clk 00:12:09]}
{[%emt 00:00:13]} 17. e5 {[%clk 00:13:03]} {[%emt 00:01:06]} Nfd5 {[%clk
00:11:45]} {[%emt 00:00:35]} 18. exd6 {[%clk 00:13:02]} {[%emt 00:00:10]} Qxd6
{[%clk 00:11:50]} {[%emt 00:00:04]} 19. Bxc4 {[%clk 00:12:39]} {[%emt
00:00:34]} Rac8 {[%clk 00:11:25]} {[%emt 00:00:34]} 20. Bf1 {[%clk 00:12:28]}
{[%emt 00:00:21]} a5 {[%clk 00:10:43]} {[%emt 00:00:53]} 21. Rad1 {[%clk
00:11:35]} {[%emt 00:01:02]} f5 {[%clk 00:09:38]} {[%emt 00:01:16]} 22. Bc1
{[%clk 00:11:16]} {[%emt 00:00:29]} Nc6 {[%clk 00:08:39]} {[%emt 00:01:08]} 23.
Qe2 {[%clk 00:10:46]} {[%emt 00:00:40]} Rfe8 {[%clk 00:08:38]} {[%emt
00:00:12]} 24. Ne5 {[%clk 00:09:44]} {[%emt 00:01:11]} Nxe5 {[%clk 00:08:39]}
{[%emt 00:00:10]} 25. dxe5 {[%clk 00:09:52]} {[%emt 00:00:02]} Qc6 {[%clk
00:08:39]} {[%emt 00:00:10]} 26. Qb5 {[%clk 00:09:28]} {[%emt 00:00:33]} Qc7
{[%clk 00:08:39]} {[%emt 00:00:11]} 27. Qe2 {[%clk 00:09:26]} {[%emt 00:00:12]}
Qc6 {[%clk 00:08:43]} {[%emt 00:00:06]} 28. Qb5 {[%clk 00:09:15]} {[%emt
00:00:20]} Qc7 {[%clk 00:08:51]} {[%emt 00:00:02]} 1/2-1/2

[Event "British Rapidplay Championship 2023"]
[Site "Mercure Bradford, Bankfield Hotel"]
[Date "2023.04.16"]
[Round "11.10"]
[White "Mazek, Marek"]
[Black "Vijayakumar, Rishi"]
[Result "1-0"]
[TimeControl "15 minutes plus 10 seconds per move"]
[WhiteElo "2052"]
[BlackElo "1770"]

1. d4 {[%clk 00:15:15]} {[%emt 00:00:05]} Nf6 {[%clk 00:15:10]} {[%emt
00:00:02]} 2. c4 {[%clk 00:15:23]} {[%emt 00:00:10]} e6 {[%clk 00:15:19]}
{[%emt 00:00:02]} 3. Nc3 {[%clk 00:15:32]} Bb4 {[%clk 00:15:28]} {[%emt
00:00:02]} 4. Qc2 {[%clk 00:15:41]} {[%emt 00:00:01]} d5 {[%clk 00:15:37]} 5.
a3 {[%clk 00:15:41]} {[%emt 00:00:10]} Bxc3+ {[%clk 00:15:36]} {[%emt
00:00:10]} 6. Qxc3 {[%clk 00:15:50]} {[%emt 00:00:01]} O-O {[%clk 00:15:44]}
{[%emt 00:00:03]} 7. Nf3 {[%clk 00:15:47]} {[%emt 00:00:12]} dxc4 {[%clk
00:15:31]} {[%emt 00:00:24]} 8. Qxc4 {[%clk 00:15:56]} {[%emt 00:00:01]} a6
{[%clk 00:15:40]} 9. Bf4 {[%clk 00:15:35]} {[%emt 00:00:29]} Nc6 {[%clk
00:14:34]} {[%emt 00:01:18]} 10. e3 {[%clk 00:15:40]} {[%emt 00:00:05]} Nd5
{[%clk 00:14:15]} {[%emt 00:00:29]} 11. Bg5 {[%clk 00:15:43]} {[%emt 00:00:07]}
f6 {[%clk 00:13:09]} {[%emt 00:01:16]} 12. Bh4 {[%clk 00:15:51]} {[%emt
00:00:02]} Qd7 {[%clk 00:11:47]} {[%emt 00:01:32]} 13. Be2 {[%clk 00:15:48]}
{[%emt 00:00:12]} b5 {[%clk 00:11:16]} {[%emt 00:00:43]} 14. Qc2 {[%clk
00:15:34]} {[%emt 00:00:23]} Bb7 {[%clk 00:11:00]} {[%emt 00:00:27]} 15. O-O
{[%clk 00:15:41]} {[%emt 00:00:02]} Rac8 {[%clk 00:09:38]} {[%emt 00:01:33]} 16.
Rac1 {[%clk 00:15:48]} {[%emt 00:00:02]} Nce7 {[%clk 00:09:36]} {[%emt
00:00:12]} 17. Bg3 {[%clk 00:15:08]} {[%emt 00:00:49]} Nf5 {[%clk 00:07:02]}
{[%emt 00:02:45]} 18. e4 {[%clk 00:15:16]} {[%emt 00:00:02]} Nxg3 {[%clk
00:07:10]} {[%emt 00:00:01]} 19. hxg3 {[%clk 00:15:25]} Nb6 {[%clk 00:06:25]}
{[%emt 00:00:55]} 20. b3 {[%clk 00:15:06]} {[%emt 00:00:30]} Qe7 {[%clk
00:05:10]} {[%emt 00:01:25]} 21. a4 {[%clk 00:15:03]} {[%emt 00:00:12]} Qb4
{[%clk 00:04:17]} {[%emt 00:01:04]} 22. axb5 {[%clk 00:15:09]} {[%emt
00:00:03]} axb5 {[%clk 00:04:25]} {[%emt 00:00:02]} 23. Rfe1 {[%clk 00:14:01]}
{[%emt 00:01:18]} Nd7 {[%clk 00:01:33]} {[%emt 00:03:03]} 24. Bd3 {[%clk
00:12:05]} {[%emt 00:02:05]} c5 {[%clk 00:01:03]} {[%emt 00:00:41]} 25. d5
{[%clk 00:12:14]} {[%emt 00:00:01]} c4 {[%clk 00:00:40]} {[%emt 00:00:34]} 26.
bxc4 {[%clk 00:12:09]} {[%emt 00:00:15]} bxc4 {[%clk 00:00:48]} {[%emt
00:00:01]} 27. Rb1 {[%clk 00:11:11]} {[%emt 00:01:07]} cxd3 {[%clk 00:00:51]}
{[%emt 00:00:07]} 28. Qxc8 {[%clk 00:11:14]} {[%emt 00:00:08]} Qxb1 {[%clk
00:00:18]} {[%emt 00:00:43]} 29. Qxf8+ {[%clk 00:11:22]} {[%emt 00:00:02]} Nxf8
{[%clk 00:00:13]} {[%emt 00:00:14]} 30. Rxb1 {[%clk 00:11:31]} {[%emt
00:00:01]} Bc8 {[%clk 00:00:18]} {[%emt 00:00:07]} 31. Ne1 {[%clk 00:11:08]}
{[%emt 00:00:32]} exd5 {[%clk 00:00:23]} {[%emt 00:00:05]} 32. exd5 {[%clk
00:11:16]} {[%emt 00:00:02]} d2 {[%clk 00:00:19]} {[%emt 00:00:15]} 33. Nf3
{[%clk 00:11:20]} {[%emt 00:00:05]} Bb7 {[%clk 00:00:24]} {[%emt 00:00:05]} 34.
d6 {[%clk 00:11:15]} {[%emt 00:00:15]} Bxf3 {[%emt 00:00:31]} 35. gxf3 {[%emt
00:00:02]} 1-0